[Event "*** Titled Tuesday Blitz"]
[Site "Chess.com"]
[Date "2021.03.02"]
[Round "9"]
[White "PSvidler"]
[Black "As0nchess"]
[Result "1-0"]
[WhiteElo "2921"]
[BlackElo "2653"]
[TimeControl "180+1"]
[EndTime "11:46:19 PST"]
[Termination "PSvidler won by checkmate"]

1. e4 {[%clk 0:03:00.9]} 1... c5 {[%clk 0:02:59.5]} 2. Nf3 {[%clk 0:03:00.5]}
2... d6 {[%clk 0:02:56.9]} 3. d4 {[%clk 0:03:00.3]} 3... cxd4 {[%clk 0:02:57.8]}
4. Nxd4 {[%clk 0:03:00.7]} 4... Nf6 {[%clk 0:02:57.9]} 5. Nc3 {[%clk 0:03:00.6]}
5... Nc6 {[%clk 0:02:58.1]} 6. Bg5 {[%clk 0:02:59.7]} 6... e6 {[%clk 0:02:58.1]}
7. Qd2 {[%clk 0:02:59.5]} 7... a6 {[%clk 0:02:58.3]} 8. Nxc6 {[%clk 0:02:58.3]}
8... bxc6 {[%clk 0:02:55.8]} 9. O-O-O {[%clk 0:02:58.1]} 9... h6 {[%clk
0:02:53.5]} 10. Bf4 {[%clk 0:02:57.3]} 10... d5 {[%clk 0:02:53.9]} 11. Qe3
{[%clk 0:02:56.3]} 11... Bb4 {[%clk 0:02:54.3]} 12. Be2 {[%clk 0:02:56.1]} 12...
O-O {[%clk 0:02:54.4]} 13. e5 {[%clk 0:02:50.9]} 13... Nd7 {[%clk 0:02:54.7]}
14. h4 {[%clk 0:02:43.4]} 14... f6 {[%clk 0:02:51]} 15. exf6 {[%clk 0:02:00.3]}
15... Qxf6 {[%clk 0:02:51.9]} 16. Bg3 {[%clk 0:02:00.3]} 16... e5 {[%clk
0:02:49.4]} 17. Nxd5 {[%clk 0:01:52.3]} 17... cxd5 {[%clk 0:02:47.9]} 18. Rxd5
{[%clk 0:01:52.2]} 18... Kh8 {[%clk 0:02:17.7]} 19. Rhd1 {[%clk 0:01:50.2]}
19... Qe6 {[%clk 0:02:11.6]} 20. Bc4 {[%clk 0:01:42.7]} 20... Qc6 {[%clk
0:02:08.5]} 21. Bb3 {[%clk 0:01:36.5]} 21... Nf6 {[%clk 0:02:06.5]} 22. Bxe5
{[%clk 0:01:29.5]} 22... Ng4 {[%clk 0:01:55.3]} 23. Bxg7+ {[%clk 0:01:26.3]}
23... Kxg7 {[%clk 0:01:53.6]} 24. Qd4+ {[%clk 0:01:26.5]} 24... Qf6 {[%clk
0:01:50.3]} 25. Qxb4 {[%clk 0:01:26.1]} 25... Nxf2 {[%clk 0:01:46.6]} 26. Re1
{[%clk 0:01:24.9]} 26... Ng4 {[%clk 0:01:28.1]} 27. a4 {[%clk 0:01:12.8]} 27...
Qf4+ {[%clk 0:01:26.4]} 28. Qxf4 {[%clk 0:01:12.3]} 28... Rxf4 {[%clk
0:01:27.3]} 29. Rd8 {[%clk 0:01:07]} 29... Bb7 {[%clk 0:01:15.2]} 30. Rd7+
{[%clk 0:01:06.6]} 30... Kg6 {[%clk 0:01:11.6]} 31. Rxb7 {[%clk 0:01:06.4]}
31... a5 {[%clk 0:01:10.7]} 32. g3 {[%clk 0:01:02.2]} 32... Rf2 {[%clk
0:01:02.8]} 33. Re6+ {[%clk 0:00:53.8]} 33... Nf6 {[%clk 0:00:57.7]} 34. Bc4
{[%clk 0:00:52.7]} 34... Kh5 {[%clk 0:00:55.5]} 35. Be2+ {[%clk 0:00:51.4]}
35... Kg6 {[%clk 0:00:54.9]} 36. g4 {[%clk 0:00:51.3]} 36... Rc8 {[%clk
0:00:52.5]} 37. Bd3+ {[%clk 0:00:50.6]} 37... Rf5 {[%clk 0:00:31.6]} 38. Bxf5#
{[%clk 0:00:51.5]} 1-0

[Event "*** Titled Tuesday Blitz"]
[Site "Chess.com"]
[Date "2021.03.02"]
[Round "9"]
[White "lelya96"]
[Black "Grandmaster1369"]
[Result "1-0"]
[WhiteElo "2276"]
[BlackElo "2402"]
[TimeControl "180+1"]
[EndTime "11:46:19 PST"]
[Termination "lelya96 won by resignation"]

1. d4 {[%clk 0:02:59.9]} 1... Nf6 {[%clk 0:02:59]} 2. Nf3 {[%clk 0:02:58.5]}
2... e6 {[%clk 0:02:58.2]} 3. Bg5 {[%clk 0:02:57.9]} 3... d5 {[%clk 0:02:56.2]}
4. e3 {[%clk 0:02:57.1]} 4... Be7 {[%clk 0:02:55.2]} 5. Bd3 {[%clk 0:02:56.4]}
5... c5 {[%clk 0:02:54.7]} 6. c3 {[%clk 0:02:56.2]} 6... Nc6 {[%clk 0:02:54.6]}
7. Nbd2 {[%clk 0:02:55.1]} 7... O-O {[%clk 0:02:55.2]} 8. O-O {[%clk 0:02:54.6]}
8... b6 {[%clk 0:02:55.8]} 9. Ne5 {[%clk 0:02:54.3]} 9... Bb7 {[%clk 0:02:49]}
10. f4 {[%clk 0:02:50.8]} 10... Nxe5 {[%clk 0:02:43.3]} 11. fxe5 {[%clk
0:02:50.1]} 11... Ne4 {[%clk 0:02:38.9]} 12. Bxe7 {[%clk 0:02:49.1]} 12... Qxe7
{[%clk 0:02:39.3]} 13. Bxe4 {[%clk 0:02:47.3]} 13... dxe4 {[%clk 0:02:40.2]} 14.
Qg4 {[%clk 0:02:46.8]} 14... cxd4 {[%clk 0:02:39.6]} 15. exd4 {[%clk 0:02:45.8]}
15... Ba6 {[%clk 0:02:32]} 16. Rfe1 {[%clk 0:02:00.4]} 16... f5 {[%clk
0:02:22.5]} 17. exf6 {[%clk 0:01:58.3]} 17... Qxf6 {[%clk 0:02:22.8]} 18. Nxe4
{[%clk 0:01:50.7]} 18... Qh6 {[%clk 0:02:20.7]} 19. Ng5 {[%clk 0:01:39.8]} 19...
Rf6 {[%clk 0:01:57.9]} 20. Rxe6 {[%clk 0:01:30.1]} 20... Raf8 {[%clk 0:01:58.2]}
21. Rxf6 {[%clk 0:01:29.1]} 21... Qxf6 {[%clk 0:01:59.1]} 22. Qe6+ {[%clk
0:01:26.1]} 22... Qxe6 {[%clk 0:01:54]} 23. Nxe6 {[%clk 0:01:26.1]} 23... Rf6
{[%clk 0:01:50.3]} 24. Re1 {[%clk 0:01:23.6]} 24... Bc4 {[%clk 0:01:49.5]} 25.
Ng5 {[%clk 0:01:15.2]} 25... g6 {[%clk 0:01:35.4]} 26. h4 {[%clk 0:01:06.3]}
26... h6 {[%clk 0:01:32.6]} 27. Re8+ {[%clk 0:01:01.5]} 27... Kg7 {[%clk
0:01:31.5]} 28. Re7+ {[%clk 0:01:00.7]} 28... Kf8 {[%clk 0:01:31.6]} 29. Rc7
{[%clk 0:00:51.2]} 29... Bd5 {[%clk 0:00:58.1]} 30. Nh7+ {[%clk 0:00:50]} 30...
Ke8 {[%clk 0:00:53.1]} 31. Nxf6+ {[%clk 0:00:49.9]} 31... Kd8 {[%clk 0:00:53.6]}
32. Nxd5 {[%clk 0:00:49.9]} 32... g5 {[%clk 0:00:54.5]} 33. Rxa7 {[%clk
0:00:49.7]} 33... gxh4 {[%clk 0:00:54.4]} 34. Rh7 {[%clk 0:00:49.6]} 34... b5
{[%clk 0:00:55.1]} 35. Rxh6 {[%clk 0:00:49]} 35... h3 {[%clk 0:00:55.6]} 36.
Rxh3 {[%clk 0:00:48.7]} 36... Kc8 {[%clk 0:00:56.2]} 37. g4 {[%clk 0:00:48.5]}
37... b4 {[%clk 0:00:56.2]} 38. g5 {[%clk 0:00:48.5]} 38... Kd8 {[%clk
0:00:57.1]} 39. g6 {[%clk 0:00:48.7]} 39... Ke8 {[%clk 0:00:57.6]} 40. Rf3
{[%clk 0:00:48.4]} 40... bxc3 {[%clk 0:00:57.1]} 41. bxc3 {[%clk 0:00:47.8]}
41... Kd7 {[%clk 0:00:57.7]} 42. g7 {[%clk 0:00:47.8]} 42... Kc8 {[%clk
0:00:58.2]} 43. Rf7 {[%clk 0:00:46.4]} 1-0

[Event "*** Titled Tuesday Blitz"]
[Site "Chess.com"]
[Date "2021.03.02"]
[Round "9"]
[White "Kobalia"]
[Black "Anton_Demchenko"]
[Result "1-0"]
[WhiteElo "2724"]
[BlackElo "2898"]
[TimeControl "180+1"]
[EndTime "11:46:20 PST"]
[Termination "Kobalia won by resignation"]

1. e4 {[%clk 0:03:00.9]} 1... e5 {[%clk 0:03:00.6]} 2. Nf3 {[%clk 0:03:00.9]}
2... Nc6 {[%clk 0:03:01.2]} 3. Bb5 {[%clk 0:03:00.6]} 3... a6 {[%clk 0:03:01.8]}
4. Ba4 {[%clk 0:03:00.5]} 4... d6 {[%clk 0:03:02.4]} 5. O-O {[%clk 0:02:57.4]}
5... Nf6 {[%clk 0:02:58.9]} 6. Re1 {[%clk 0:02:55.6]} 6... Be7 {[%clk
0:02:52.7]} 7. Bxc6+ {[%clk 0:02:53.8]} 7... bxc6 {[%clk 0:02:52.6]} 8. d4
{[%clk 0:02:54.3]} 8... exd4 {[%clk 0:02:52.8]} 9. Nxd4 {[%clk 0:02:53.1]} 9...
Bd7 {[%clk 0:02:49.3]} 10. Qf3 {[%clk 0:02:51.8]} 10... O-O {[%clk 0:02:40.9]}
11. Nc3 {[%clk 0:02:50.4]} 11... Re8 {[%clk 0:02:32.1]} 12. e5 {[%clk 0:02:46]}
12... dxe5 {[%clk 0:02:25.8]} 13. Nxc6 {[%clk 0:02:45.3]} 13... Bxc6 {[%clk
0:01:55]} 14. Qxc6 {[%clk 0:02:46.2]} 14... Bd6 {[%clk 0:01:55.7]} 15. Bg5
{[%clk 0:02:42.8]} 15... Qd7 {[%clk 0:01:52.3]} 16. Qxd7 {[%clk 0:02:40.1]}
16... Nxd7 {[%clk 0:01:53.2]} 17. Rad1 {[%clk 0:02:39.4]} 17... f5 {[%clk
0:01:42.6]} 18. Nd5 {[%clk 0:02:26.8]} 18... Nf8 {[%clk 0:01:30.9]} 19. Bd2
{[%clk 0:02:20.8]} 19... Ne6 {[%clk 0:01:08.7]} 20. Ba5 {[%clk 0:02:18.2]} 20...
Rab8 {[%clk 0:01:00.6]} 21. b4 {[%clk 0:02:17.1]} 21... e4 {[%clk 0:00:55.6]}
22. c4 {[%clk 0:02:16.1]} 22... Be5 {[%clk 0:00:53.7]} 23. f3 {[%clk 0:01:44.6]}
23... c6 {[%clk 0:00:52.7]} 24. fxe4 {[%clk 0:01:44.6]} 24... cxd5 {[%clk
0:00:39.1]} 25. exd5 {[%clk 0:01:44.5]} 25... Ng5 {[%clk 0:00:22.8]} 26. d6
{[%clk 0:01:37.1]} 26... Ne4 {[%clk 0:00:22]} 27. d7 {[%clk 0:01:35.3]} 27...
Red8 {[%clk 0:00:22.5]} 28. c5 {[%clk 0:01:23.8]} 28... Bc3 {[%clk 0:00:10.4]}
29. c6 {[%clk 0:01:10.9]} 29... Bxe1 {[%clk 0:00:05.8]} 30. c7 {[%clk
0:01:11.1]} 30... Bf2+ {[%clk 0:00:04.3]} 31. Kf1 {[%clk 0:01:08.8]} 31... Be3
{[%clk 0:00:02.3]} 32. cxd8=Q+ {[%clk 0:01:06.2]} 32... Rxd8 {[%clk 0:00:02.3]}
33. Bxd8 {[%clk 0:01:05.7]} 1-0

[Event "*** Titled Tuesday Blitz"]
[Site "Chess.com"]
[Date "2021.03.02"]
[Round "9"]
[White "Julianos82"]
[Black "bazar-wokzal"]
[Result "1-0"]
[WhiteElo "2368"]
[BlackElo "2495"]
[TimeControl "180+1"]
[EndTime "11:46:25 PST"]
[Termination "Julianos82 won by resignation"]

1. d4 {[%clk 0:03:00.9]} 1... Nf6 {[%clk 0:02:59.4]} 2. Nf3 {[%clk 0:03:00.9]}
2... e6 {[%clk 0:02:58.7]} 3. Bg5 {[%clk 0:03:00.5]} 3... h6 {[%clk 0:02:58.2]}
4. Bh4 {[%clk 0:02:59.8]} 4... c5 {[%clk 0:02:56.1]} 5. e3 {[%clk 0:02:59.5]}
5... b6 {[%clk 0:02:55.6]} 6. Nbd2 {[%clk 0:02:58.7]} 6... Bb7 {[%clk 0:02:55]}
7. Bd3 {[%clk 0:02:58.6]} 7... Be7 {[%clk 0:02:44.9]} 8. O-O {[%clk 0:02:56.7]}
8... d6 {[%clk 0:02:43.2]} 9. Qe2 {[%clk 0:02:54.1]} 9... Nbd7 {[%clk
0:02:42.6]} 10. c3 {[%clk 0:02:53.2]} 10... Qc7 {[%clk 0:02:36.3]} 11. a4 {[%clk
0:02:48.9]} 11... g5 {[%clk 0:02:32.4]} 12. Bg3 {[%clk 0:02:47.8]} 12... h5
{[%clk 0:02:06.8]} 13. Nxg5 {[%clk 0:01:56.4]} 13... h4 {[%clk 0:02:04.4]} 14.
e4 {[%clk 0:01:46.9]} 14... hxg3 {[%clk 0:02:03.5]} 15. fxg3 {[%clk 0:01:47.4]}
15... Rf8 {[%clk 0:01:08.7]} 16. d5 {[%clk 0:01:30]} 16... exd5 {[%clk
0:01:04.3]} 17. exd5 {[%clk 0:01:27.5]} 17... Ne5 {[%clk 0:01:01.1]} 18. Bb5+
{[%clk 0:01:25.6]} 18... Kd8 {[%clk 0:01:00.7]} 19. Ndf3 {[%clk 0:01:10.3]}
19... Nfg4 {[%clk 0:00:57]} 20. Ne4 {[%clk 0:01:04.7]} 20... Bxd5 {[%clk
0:00:54.5]} 21. Rad1 {[%clk 0:00:59.5]} 21... Bb3 {[%clk 0:00:46.9]} 22. Rd2
{[%clk 0:00:51]} 22... f5 {[%clk 0:00:42.7]} 23. Nxe5 {[%clk 0:00:49.2]} 23...
Nxe5 {[%clk 0:00:40.2]} 24. Nxd6 {[%clk 0:00:44.2]} 24... Bxd6 {[%clk
0:00:34.1]} 25. Qxe5 {[%clk 0:00:42.9]} 25... a6 {[%clk 0:00:24.5]} 26. Rxd6+
{[%clk 0:00:39.3]} 26... Kc8 {[%clk 0:00:24.3]} 27. Bd7+ {[%clk 0:00:35]} 27...
Kb8 {[%clk 0:00:24.1]} 28. Rxb6+ {[%clk 0:00:28.3]} 1-0

[Event "*** Titled Tuesday Blitz"]
[Site "Chess.com"]
[Date "2021.03.02"]
[Round "9"]
[White "kai_nov"]
[Black "klimkoj"]
[Result "0-1"]
[WhiteElo "2404"]
[BlackElo "2606"]
[TimeControl "180+1"]
[EndTime "11:46:27 PST"]
[Termination "klimkoj won on time"]

1. d4 {[%clk 0:03:00.9]} 1... Nf6 {[%clk 0:02:58.6]} 2. c4 {[%clk 0:03:00.5]}
2... e6 {[%clk 0:02:58.9]} 3. Nc3 {[%clk 0:03:00]} 3... Bb4 {[%clk 0:02:59.3]}
4. f3 {[%clk 0:02:58.7]} 4... d5 {[%clk 0:02:56.5]} 5. a3 {[%clk 0:02:57.2]}
5... Bxc3+ {[%clk 0:02:56.1]} 6. bxc3 {[%clk 0:02:56.7]} 6... c5 {[%clk
0:02:56.6]} 7. e3 {[%clk 0:02:56.5]} 7... O-O {[%clk 0:02:55]} 8. cxd5 {[%clk
0:02:52.4]} 8... Nxd5 {[%clk 0:02:40]} 9. Bd2 {[%clk 0:02:51.6]} 9... Nc6 {[%clk
0:02:35.5]} 10. f4 {[%clk 0:02:48.2]} 10... cxd4 {[%clk 0:02:32.4]} 11. cxd4
{[%clk 0:02:47.7]} 11... Nb8 {[%clk 0:02:25.4]} 12. Nf3 {[%clk 0:02:43.9]} 12...
b6 {[%clk 0:02:18.4]} 13. Bd3 {[%clk 0:02:36.8]} 13... Nf6 {[%clk 0:02:15.1]}
14. e4 {[%clk 0:02:19.3]} 14... Ba6 {[%clk 0:02:12.7]} 15. Qe2 {[%clk
0:02:16.1]} 15... Bxd3 {[%clk 0:02:09.3]} 16. Qxd3 {[%clk 0:02:16.1]} 16... Qc8
{[%clk 0:02:06.4]} 17. O-O {[%clk 0:01:26.3]} 17... Qa6 {[%clk 0:02:05.1]} 18.
Qb1 {[%clk 0:01:23.3]} 18... Nc6 {[%clk 0:02:02.4]} 19. f5 {[%clk 0:00:54.6]}
19... exf5 {[%clk 0:01:58.1]} 20. e5 {[%clk 0:00:53.1]} 20... Ne4 {[%clk
0:01:54.1]} 21. d5 {[%clk 0:00:46.7]} 21... Nxe5 {[%clk 0:01:44.5]} 22. Nxe5
{[%clk 0:00:42.8]} 22... Nxd2 {[%clk 0:01:44.6]} 23. Qxf5 {[%clk 0:00:42]} 23...
Nxf1 {[%clk 0:01:43.9]} 24. Rxf1 {[%clk 0:00:40.5]} 24... Qb7 {[%clk 0:01:31.3]}
25. Nd7 {[%clk 0:00:37.6]} 25... Rfd8 {[%clk 0:01:11.6]} 26. Qxf7+ {[%clk
0:00:26.9]} 26... Kh8 {[%clk 0:01:11.6]} 27. Ne5 {[%clk 0:00:20.3]} 27... Qxd5
{[%clk 0:00:59.6]} 28. Qh5 {[%clk 0:00:14.4]} 28... Kg8 {[%clk 0:00:51.5]} 0-1

[Event "*** Titled Tuesday Blitz"]
[Site "Chess.com"]
[Date "2021.03.02"]
[Round "9"]
[White "XxPetroffsxX"]
[Black "Chamal_Gedgafov"]
[Result "0-1"]
[WhiteElo "2138"]
[BlackElo "2275"]
[TimeControl "180+1"]
[EndTime "11:46:28 PST"]
[Termination "Chamal_Gedgafov won by resignation"]

1. d4 {[%clk 0:03:00.9]} 1... Nf6 {[%clk 0:02:59.1]} 2. c4 {[%clk 0:03:00.9]}
2... g6 {[%clk 0:02:58.1]} 3. f3 {[%clk 0:02:59.8]} 3... Bg7 {[%clk 0:02:59]} 4.
e4 {[%clk 0:02:59.7]} 4... d6 {[%clk 0:02:58.3]} 5. Nc3 {[%clk 0:03:00.2]} 5...
O-O {[%clk 0:02:54.9]} 6. Be3 {[%clk 0:02:59.9]} 6... e5 {[%clk 0:02:54.6]} 7.
d5 {[%clk 0:02:59.2]} 7... Nbd7 {[%clk 0:02:54.3]} 8. Nh3 {[%clk 0:02:58.3]}
8... a6 {[%clk 0:02:46]} 9. Nf2 {[%clk 0:02:57.6]} 9... Nc5 {[%clk 0:02:42.7]}
10. Nd3 {[%clk 0:02:50.6]} 10... b6 {[%clk 0:02:40.7]} 11. Qd2 {[%clk
0:02:47.2]} 11... Bd7 {[%clk 0:02:38.8]} 12. Bh6 {[%clk 0:02:43.6]} 12... Nh5
{[%clk 0:02:35.2]} 13. Bxg7 {[%clk 0:02:42.9]} 13... Kxg7 {[%clk 0:02:34.7]} 14.
g3 {[%clk 0:02:32.7]} 14... f5 {[%clk 0:02:31.7]} 15. Nxc5 {[%clk 0:02:30]}
15... bxc5 {[%clk 0:02:29.7]} 16. Bd3 {[%clk 0:02:28]} 16... f4 {[%clk
0:02:26.6]} 17. g4 {[%clk 0:02:21.3]} 17... Nf6 {[%clk 0:02:26.5]} 18. h4 {[%clk
0:02:20.3]} 18... Ng8 {[%clk 0:02:26]} 19. g5 {[%clk 0:02:08.1]} 19... Rb8
{[%clk 0:02:20.9]} 20. b3 {[%clk 0:02:03.2]} 20... c6 {[%clk 0:02:17.3]} 21. Bc2
{[%clk 0:02:00.2]} 21... Ne7 {[%clk 0:02:13.2]} 22. Kf2 {[%clk 0:01:45.6]} 22...
cxd5 {[%clk 0:02:09.9]} 23. cxd5 {[%clk 0:01:35.3]} 23... c4 {[%clk 0:01:59.4]}
24. h5 {[%clk 0:01:32.7]} 24... Qb6+ {[%clk 0:01:53.1]} 25. Ke2 {[%clk
0:01:31.9]} 25... Qc5 {[%clk 0:01:43.3]} 26. Na4 {[%clk 0:01:29.1]} 26... Bxa4
{[%clk 0:01:38.6]} 27. bxa4 {[%clk 0:01:29.5]} 27... Rb2 {[%clk 0:01:32.8]} 28.
Rab1 {[%clk 0:01:28.3]} 28... Rfb8 {[%clk 0:01:28.3]} 29. Qc3 {[%clk 0:01:24.3]}
29... Rxb1 {[%clk 0:01:24.2]} 30. h6+ {[%clk 0:01:20.4]} 30... Kf7 {[%clk
0:01:21.8]} 31. Bxb1 {[%clk 0:01:13.6]} 31... Nc8 {[%clk 0:01:08.6]} 32. Bc2
{[%clk 0:01:12.1]} 32... Rb4 {[%clk 0:00:59.3]} 33. Rh4 {[%clk 0:01:09.2]} 33...
Nb6 {[%clk 0:00:48.2]} 34. Rxf4+ {[%clk 0:00:53.9]} 34... Ke7 {[%clk 0:00:47.9]}
35. Rf6 {[%clk 0:00:48.7]} 35... Nxa4 {[%clk 0:00:47.5]} 36. Bxa4 {[%clk
0:00:46.6]} 36... Rxa4 {[%clk 0:00:47.6]} 37. Re6+ {[%clk 0:00:46.4]} 37... Kd7
{[%clk 0:00:46.1]} 38. Rf6 {[%clk 0:00:43.6]} 38... Rxa2+ {[%clk 0:00:45.2]} 39.
Kd1 {[%clk 0:00:41.9]} 39... Qg1+ {[%clk 0:00:43.2]} 0-1

[Event "*** Titled Tuesday Blitz"]
[Site "Chess.com"]
[Date "2021.03.02"]
[Round "9"]
[White "enriquebutti"]
[Black "SanchezKelvin"]
[Result "0-1"]
[WhiteElo "2194"]
[BlackElo "2438"]
[TimeControl "180+1"]
[EndTime "11:46:30 PST"]
[Termination "SanchezKelvin won by resignation"]

1. d4 {[%clk 0:02:59.6]} 1... Nf6 {[%clk 0:02:59.1]} 2. c4 {[%clk 0:02:58.4]}
2... e6 {[%clk 0:02:56.7]} 3. Nf3 {[%clk 0:02:58]} 3... c5 {[%clk 0:02:56.3]} 4.
e3 {[%clk 0:02:57.3]} 4... cxd4 {[%clk 0:02:54.6]} 5. exd4 {[%clk 0:02:56.9]}
5... d5 {[%clk 0:02:54.7]} 6. Nc3 {[%clk 0:02:56.3]} 6... Nc6 {[%clk 0:02:53.7]}
7. cxd5 {[%clk 0:02:55.9]} 7... Nxd5 {[%clk 0:02:53]} 8. Bd3 {[%clk 0:02:55.2]}
8... Be7 {[%clk 0:02:53.2]} 9. O-O {[%clk 0:02:54.3]} 9... Bf6 {[%clk
0:02:52.4]} 10. Be4 {[%clk 0:02:52]} 10... Nce7 {[%clk 0:02:47.1]} 11. Re1
{[%clk 0:02:45.6]} 11... O-O {[%clk 0:02:45.9]} 12. Qd3 {[%clk 0:02:44.9]} 12...
h6 {[%clk 0:02:42]} 13. Ne5 {[%clk 0:02:36.9]} 13... Bd7 {[%clk 0:02:29.7]} 14.
Qh3 {[%clk 0:02:33.6]} 14... Bc6 {[%clk 0:02:06.6]} 15. Ng4 {[%clk 0:01:51.8]}
15... Bxd4 {[%clk 0:01:59.7]} 16. Nxh6+ {[%clk 0:01:30.7]} 16... gxh6 {[%clk
0:01:55.8]} 17. Bxh6 {[%clk 0:01:22.4]} 17... f5 {[%clk 0:01:48]} 18. Rad1
{[%clk 0:01:08.1]} 18... Bg7 {[%clk 0:01:30.7]} 19. Qg3 {[%clk 0:00:57.7]} 19...
Rf7 {[%clk 0:01:27]} 20. Bxd5 {[%clk 0:00:52.8]} 20... exd5 {[%clk 0:01:16.7]}
21. Re6 {[%clk 0:00:47.5]} 21... Qd7 {[%clk 0:01:05.6]} 22. Rde1 {[%clk
0:00:46.1]} 22... f4 {[%clk 0:00:58.8]} 23. Qg5 {[%clk 0:00:44.5]} 23... Nf5
{[%clk 0:00:55.9]} 24. Bxg7 {[%clk 0:00:31.2]} 24... Nxg7 {[%clk 0:00:54.7]} 25.
Re7 {[%clk 0:00:30.6]} 25... Qf5 {[%clk 0:00:35.5]} 26. Qxf5 {[%clk 0:00:26.1]}
26... Nxf5 {[%clk 0:00:34.3]} 27. Rxf7 {[%clk 0:00:25.8]} 27... Kxf7 {[%clk
0:00:33.3]} 28. Re5 {[%clk 0:00:26.1]} 28... Ne7 {[%clk 0:00:33.2]} 29. Rg5
{[%clk 0:00:25.2]} 29... d4 {[%clk 0:00:31.3]} 0-1

[Event "*** Titled Tuesday Blitz"]
[Site "Chess.com"]
[Date "2021.03.02"]
[Round "9"]
[White "chigorin28"]
[Black "Sven_Tica"]
[Result "1-0"]
[WhiteElo "2527"]
[BlackElo "2663"]
[TimeControl "180+1"]
[EndTime "11:46:31 PST"]
[Termination "chigorin28 won by resignation"]

1. d4 {[%clk 0:03:00.9]} 1... d5 {[%clk 0:02:59.9]} 2. c4 {[%clk 0:03:00.5]}
2... e6 {[%clk 0:03:00.2]} 3. Nc3 {[%clk 0:03:00.8]} 3... Nf6 {[%clk 0:03:00.5]}
4. Nf3 {[%clk 0:03:00.5]} 4... Nbd7 {[%clk 0:02:56.1]} 5. cxd5 {[%clk
0:02:53.9]} 5... exd5 {[%clk 0:02:54]} 6. Bg5 {[%clk 0:02:54]} 6... c6 {[%clk
0:02:52.4]} 7. e3 {[%clk 0:02:54.3]} 7... Bd6 {[%clk 0:02:52.9]} 8. Bd3 {[%clk
0:02:54.4]} 8... Nf8 {[%clk 0:02:53.5]} 9. O-O {[%clk 0:02:53.9]} 9... Ng6
{[%clk 0:02:47.2]} 10. e4 {[%clk 0:02:36.4]} 10... Bf4 {[%clk 0:02:19.6]} 11.
exd5 {[%clk 0:02:14.1]} 11... Bxg5 {[%clk 0:02:13.8]} 12. Nxg5 {[%clk
0:01:19.8]} 12... Nxd5 {[%clk 0:02:10.2]} 13. Re1+ {[%clk 0:01:12.7]} 13... Kf8
{[%clk 0:01:50.3]} 14. Nge4 {[%clk 0:00:45]} 14... Ndf4 {[%clk 0:01:45.4]} 15.
Bc4 {[%clk 0:00:42.6]} 15... h6 {[%clk 0:01:38.3]} 16. Qb3 {[%clk 0:00:32.7]}
16... Qc7 {[%clk 0:01:25]} 17. d5 {[%clk 0:00:30.9]} 17... b5 {[%clk 0:01:07.2]}
18. Bf1 {[%clk 0:00:30.4]} 18... cxd5 {[%clk 0:00:58]} 19. Nxd5 {[%clk
0:00:27.1]} 19... Nxd5 {[%clk 0:00:57.9]} 20. Qxd5 {[%clk 0:00:27.4]} 20... Rb8
{[%clk 0:00:55.1]} 21. Rac1 {[%clk 0:00:26.5]} 21... Qb6 {[%clk 0:00:34]} 22.
Rc6 {[%clk 0:00:25.9]} 22... Qa5 {[%clk 0:00:26.5]} 23. b4 {[%clk 0:00:25.8]}
23... Ne7 {[%clk 0:00:20.5]} 24. Qd6 {[%clk 0:00:20.8]} 1-0

[Event "*** Titled Tuesday Blitz"]
[Site "Chess.com"]
[Date "2021.03.02"]
[Round "9"]
[White "Mazanchenko_Dmitry"]
[Black "zverr1"]
[Result "0-1"]
[WhiteElo "2106"]
[BlackElo "2440"]
[TimeControl "180+1"]
[EndTime "11:46:31 PST"]
[Termination "zverr1 won by resignation"]

1. e4 {[%clk 0:03:00.9]} 1... d5 {[%clk 0:02:58.9]} 2. exd5 {[%clk 0:02:59.8]}
2... c6 {[%clk 0:02:59.4]} 3. d4 {[%clk 0:02:56.4]} 3... cxd5 {[%clk 0:02:59.2]}
4. c4 {[%clk 0:02:57.3]} 4... Nc6 {[%clk 0:02:55.7]} 5. Nc3 {[%clk 0:02:58.2]}
5... dxc4 {[%clk 0:02:54.4]} 6. d5 {[%clk 0:02:58.2]} 6... Ne5 {[%clk
0:02:54.8]} 7. Bxc4 {[%clk 0:02:54]} 7... Nxc4 {[%clk 0:02:54.2]} 8. Qa4+ {[%clk
0:02:54]} 8... Bd7 {[%clk 0:02:54.8]} 9. Qxc4 {[%clk 0:02:54.1]} 9... Rc8 {[%clk
0:02:55.1]} 10. Qd3 {[%clk 0:02:53.7]} 10... Nf6 {[%clk 0:02:52]} 11. Bg5 {[%clk
0:02:52.2]} 11... e6 {[%clk 0:02:43.9]} 12. O-O-O {[%clk 0:02:39.4]} 12... Be7
{[%clk 0:02:41.4]} 13. d6 {[%clk 0:02:36.7]} 13... Bf8 {[%clk 0:02:41.6]} 14.
Qd4 {[%clk 0:02:15.8]} 14... Qa5 {[%clk 0:02:32.5]} 15. Bxf6 {[%clk 0:02:13.9]}
15... gxf6 {[%clk 0:02:32.6]} 16. Qxf6 {[%clk 0:02:07.7]} 16... Qxa2 {[%clk
0:02:33]} 17. Qxh8 {[%clk 0:02:00.3]} 17... Qa1+ {[%clk 0:02:32.9]} 18. Kd2
{[%clk 0:01:53.5]} 18... Qxb2+ {[%clk 0:02:31.8]} 19. Ke1 {[%clk 0:01:46.8]}
19... Rxc3 {[%clk 0:02:28.4]} 20. Ne2 {[%clk 0:01:46.2]} 20... Rc2 {[%clk
0:02:13.4]} 21. Qxb2 {[%clk 0:01:42.9]} 21... Rxb2 {[%clk 0:02:14.3]} 22. Nf4
{[%clk 0:01:22.6]} 22... a5 {[%clk 0:02:02.9]} 23. Nd3 {[%clk 0:01:11.1]} 23...
Rc2 {[%clk 0:01:57.8]} 24. Rc1 {[%clk 0:01:10.7]} 24... Rxc1+ {[%clk 0:01:57.4]}
25. Nxc1 {[%clk 0:01:11.6]} 25... Bxd6 {[%clk 0:01:58.2]} 26. Kd2 {[%clk
0:01:09.8]} 26... Bb4+ {[%clk 0:01:55.4]} 27. Kc2 {[%clk 0:01:08.2]} 27... Bc6
{[%clk 0:01:54.1]} 28. f3 {[%clk 0:01:07.3]} 28... a4 {[%clk 0:01:49.4]} 29. Na2
{[%clk 0:01:04]} 29... Bc5 {[%clk 0:01:43.4]} 30. Rb1 {[%clk 0:00:59.4]} 30...
Bd5 {[%clk 0:01:39.4]} 31. Nc3 {[%clk 0:00:53.7]} 31... Bb3+ {[%clk 0:01:39.2]}
32. Kb2 {[%clk 0:00:53.2]} 32... Bd4 {[%clk 0:01:36.4]} 33. Rc1 {[%clk
0:00:43.6]} 33... b5 {[%clk 0:01:32]} 34. Ka3 {[%clk 0:00:43.7]} 34... Bc5+
{[%clk 0:01:31.5]} 35. Kb2 {[%clk 0:00:43.7]} 35... Be3 {[%clk 0:01:23.4]} 36.
Re1 {[%clk 0:00:25.3]} 36... Bd4 {[%clk 0:01:14.7]} 37. Re4 {[%clk 0:00:15.1]}
37... e5 {[%clk 0:01:14.4]} 38. f4 {[%clk 0:00:07.7]} 38... b4 {[%clk
0:01:14.1]} 39. fxe5 {[%clk 0:00:08]} 39... Bxc3+ {[%clk 0:01:13.9]} 40. Kb1
{[%clk 0:00:08.2]} 40... a3 {[%clk 0:01:13.5]} 0-1